bitfinex-derivatives/quotes_ETHF0:USTF0_20250816
["timestamp","ask_amount","ask_price","bid_price","bid_amount"]
[1755313602378,4.2927,4456.1,4456.0,25.39737182]
[1755313603176,3.6432,4456.1,4456.0,25.39737182]
[1755313603370,3.82049521,4456.1,4456.0,25.39737182]
[1755313603571,3.6432,4456.1,4456.0,25.39737182]
[1755313603773,3.2078,4456.1,4456.0,25.39737182]
[1755313604677,3.2078,4456.1,4456.0,27.40691493]
[1755313604879,0.00618007,4456.3,4456.2,0.4538]
[1755313605072,0.00618007,4456.3,4456.2,1.7704]
[1755313605776,0.00618007,4456.3,4456.2,3.77994311]
[1755313607274,0.00618007,4456.3,4456.2,1.7704]
[1755313607477,0.00618007,4456.3,4456.2,3.77994311]
[1755313607879,0.00618007,4456.3,4456.2,1.7704]
[1755313610082,0.00618007,4456.3,4456.2,3.78311454]
[1755313611975,0.715,4457.6,4457.0,0.44838]
[1755313612183,0.6672,4457.1,4457.0,1.14548]
[1755313612384,0.6672,4457.1,4457.0,22.81848]
[1755313612584,0.1661,4457.1,4457.0,23.49088]
[1755313612783,0.1661,4457.1,4457.0,23.86718]
[1755313613287,0.4272,4457.4,4457.3,1.3695]
[1755313613488,0.2611,4457.5,4457.4,1.14544]
[1755313613786,1.6586,4457.5,4457.4,1.14544]
[1755313613988,1.6586,4457.5,4457.4,22.81344]
[1755313614185,1.6586,4457.5,4457.4,24.70167182]
[1755313614386,0.3516,4457.4,4457.0,0.44838]
[1755313614582,1.4186,4457.1,4457.0,0.44838]
[1755313614783,1.4186,4457.1,4457.0,22.11438]
[1755313614977,1.2952,4457.1,4457.0,22.0826]
[1755313615184,0.7036,4456.9,4456.8,0.4484]
[1755313615385,1.6586,4456.9,4456.8,22.1124]
[1755313615585,1.6586,4456.9,4456.8,22.53]
[1755313615785,1.6586,4456.9,4456.8,22.8162]
[1755313615980,1.6586,4456.9,4456.8,21.664]
[1755313616179,3.2078,4457.4,4456.8,0.4176]
[1755313616489,3.2078,4457.4,4456.4,0.6311]
[1755313616490,1.6586,4457.0,4456.9,23.58197182]
[1755313616688,1.6586,4457.0,4456.9,21.663]
[1755313616880,0.7036,4457.0,4456.9,21.66]
[1755313617087,1.6586,4457.0,4456.9,21.66]
[1755313619188,0.1661,4456.3,4456.2,2.01271454]
[1755313619384,1.6586,4456.3,4456.2,21.658]
[1755313619691,1.6586,4456.3,4456.2,22.5303]
[1755313620383,4.8664,4456.3,4456.1,32.308]
[1755313620584,4.8664,4456.3,4455.4,0.3763]
[1755313620585,0.9914,4455.7,4455.6,2.01271454]
[1755313620792,0.9914,4455.7,4455.4,21.651]
[1755313620793,1.6586,4455.7,4455.4,21.651]
[1755313620990,1.6586,4455.5,4455.4,21.651]
[1755313621184,1.6586,4455.5,4455.4,22.5233]
[1755313621385,1.6586,4455.5,4455.4,23.142]
[1755313621586,1.307,4455.5,4455.4,23.142]
[1755313621786,1.6586,4455.5,4455.4,23.3968]
[1755313622493,1.6586,4455.5,4455.4,22.7657]
[1755313622683,1.6586,4455.5,4455.4,21.651]
[1755313626092,1.6586,4455.5,4455.4,23.142]
[1755313626284,1.6586,4455.5,4455.4,23.3968]
[1755313626486,1.307,4455.5,4455.4,23.3968]
[1755313626988,1.6586,4455.5,4455.4,21.651]
[1755313628695,0.7036,4455.5,4455.4,21.638]
[1755313629294,0.7036,4455.1,4454.6,1.91897182]
[1755313629599,1.2952,4454.8,4454.7,23.126]
[1755313629801,1.307,4454.8,4454.7,23.126]
[1755313629998,1.0306,4454.8,4454.7,23.3808]
[1755313631595,0.6672,4454.8,4454.7,23.3808]
[1755313631788,0.18376602,4456.6,4454.9,0.4547]
[1755313631789,3.2078,4455.5,4454.9,0.4547]
[1755313631988,0.1661,4455.5,4455.4,3.66477182]
[1755313632199,0.1661,4455.5,4455.4,25.29477182]
[1755313632394,0.4061,4455.5,4455.4,25.29477182]
[1755313632594,0.6034,4455.9,4455.4,24.24607182]
[1755313632903,0.7036,4456.0,4455.7,0.4176]
[1755313633193,4.8664,4455.8,4455.7,21.63]
[1755313633393,0.4425,4455.6,4455.5,22.0446]
[1755313633597,1.6586,4455.6,4455.5,22.0446]
[1755313635400,1.6586,4455.6,4455.5,21.627]
[1755313635605,0.7036,4455.0,4454.9,0.8723]
[1755313635903,3.2078,4455.2,4455.1,0.6971]
[1755313636106,4.2384,4455.2,4455.1,1.7458]
[1755313636800,3.2078,4455.2,4455.1,1.7458]
[1755313637008,3.3739,4455.2,4455.1,1.7458]
[1755313637303,3.2078,4455.2,4455.1,2.19437]
[1755313638812,0.3367,4457.2,4455.1,2.19437]
[1755313638813,3.2078,4456.0,4455.9,1.7313]
[1755313639009,3.2078,4456.0,4455.9,25.26527182]
[1755313639220,4.8709,4457.1,4457.0,0.2814]
[1755313639414,4.8709,4457.1,4457.0,1.4724]
[1755313639908,4.8709,4457.1,4457.0,1.7313]
[1755313640611,3.8819,4457.1,4457.0,1.7313]
[1755313640807,4.1476,4457.1,4457.0,1.7313]
[1755313641012,4.8709,4457.1,4457.0,1.4724]
[1755313641214,4.8709,4457.1,4457.0,1.0908]
[1755313642013,4.8709,4457.1,4457.0,0.8453]
[1755313642207,0.6442,4457.0,4456.9,21.606]
[1755313642411,1.6631,4457.0,4456.9,21.606]
[1755313644816,0.6822,4457.0,4455.9,1.91897182]
[1755313645016,1.6631,4455.8,4455.6,2.01271454]
[1755313645213,1.6631,4455.8,4455.4,0.4026]
[1755313645214,1.6631,4455.8,4455.7,21.9996]
[1755313645416,1.6631,4455.8,4455.7,22.6878]
[1755313645619,1.6631,4455.8,4455.7,23.0694]
[1755313645819,1.6631,4455.8,4455.7,22.6878]
[1755313646621,1.6631,4455.8,4455.7,23.0694]
[1755313646821,1.6631,4455.8,4455.7,23.3283]
[1755313647423,1.3264,4455.8,4455.7,23.3283]
[1755313647620,3.2078,4456.1,4455.7,23.3283]
[1755313647621,0.6442,4456.0,4455.8,1.0431]
[1755313647919,1.6631,4456.0,4455.9,1.7313]
[1755313648726,1.6631,4456.0,4455.9,1.0908]
[1755313649121,1.3264,4456.0,4455.9,1.7313]
[1755313649322,1.0607,4456.0,4455.9,1.7313]
[1755313650425,3.2078,4456.1,4455.9,1.7313]
[1755313650627,0.1599,4456.0,4455.9,0.6882]
[1755313651218,3.2078,4456.7,4456.1,0.44847]
[1755313651423,4.5342,4456.7,4456.6,1.7313]
[1755313651619,4.8709,4456.7,4456.6,1.7313]
[1755313651819,5.04804413,4456.7,4456.6,1.7313]
[1755313652626,4.71134413,4456.7,4456.6,1.7313]
[1755313653419,5.04804413,4456.7,4456.6,1.7313]
[1755313653726,5.04804413,4456.7,4456.6,1.4724]
[1755313653926,5.04804413,4456.7,4456.4,21.577]
[1755313654223,1.2765,4456.3,4456.2,21.577]
[1755313654428,1.84024413,4456.3,4456.2,21.577]
[1755313654822,0.85934413,4456.3,4455.7,0.4026]
[1755313655128,4.8709,4455.8,4455.7,0.8453]
[1755313655426,4.8709,4455.8,4455.7,1.0908]
[1755313655628,4.8709,4455.8,4455.7,23.0454]
[1755313656326,4.8709,4455.8,4455.7,23.3043]
[1755313656631,3.6243,4455.8,4455.7,1.7313]
[1755313657118,3.6243,4455.8,4455.7,23.3013]
[1755313657517,3.6243,4455.8,4455.7,23.3003]
[1755313658326,3.6243,4455.8,4455.7,1.7313]
[1755313658633,3.8819,4455.8,4455.7,23.2973]
[1755313658926,4.2685,4455.8,4455.7,23.2973]
[1755313660026,4.8709,4455.8,4455.7,23.2973]
[1755313660827,4.8709,4455.8,4455.7,22.6568]
[1755313661030,4.8709,4455.8,4455.7,21.566]
[1755313661230,0.6822,4455.5,4455.3,0.3816]
[1755313661431,1.6631,4455.4,4455.3,1.4724]
[1755313661727,1.6631,4455.4,4455.3,22.6508]
[1755313661728,1.3264,4455.4,4455.3,22.6508]
[1755313662031,0.6822,4455.1,4455.0,1.0698]
[1755313662230,1.6631,4455.1,4455.0,22.6288]
[1755313662528,1.6631,4455.1,4455.0,23.0314]
[1755313662924,1.6631,4455.1,4455.0,22.6498]
[1755313663124,1.6631,4455.1,4455.0,23.0314]
[1755313663526,1.6631,4455.1,4455.0,23.2903]
[1755313664828,1.3264,4455.1,4455.0,23.2903]
[1755313665625,0.6822,4455.1,4454.7,0.3816]
[1755313665929,3.2078,4454.8,4454.5,0.4026]
[1755313666128,0.4165,4454.6,4454.5,1.4724]
[1755313666330,1.6631,4454.6,4454.5,1.0908]
[1755313666730,1.6631,4454.6,4454.5,22.6398]
[1755313666933,1.6631,4454.6,4454.5,1.0908]
[1755313667527,1.6631,4454.6,4454.5,1.4724]
[1755313667723,0.6822,4454.6,4454.5,0.6882]
[1755313667927,1.0189,4454.6,4454.5,1.0908]
[1755313668129,1.0189,4454.6,4454.5,1.4724]
[1755313668335,1.6615,4454.6,4454.5,1.4724]
[1755313669829,1.6615,4454.6,4454.5,1.0908]
[1755313670133,1.6615,4454.6,4454.5,0.684]
[1755313670535,1.6615,4454.6,4454.5,1.106]
[1755313670738,1.6615,4454.6,4454.5,1.7542]
[1755313671724,1.6615,4454.6,4454.5,1.106]
[1755313671929,1.6615,4454.6,4453.7,1.91897182]
[1755313672134,3.8719,4454.0,4453.9,1.7713]
[1755313672330,3.373,4454.0,4453.9,1.7713]
[1755313672537,3.2078,4454.0,4453.9,1.7713]
[1755313676441,4.0127,4454.5,4454.4,1.7713]
[1755313676740,4.2596,4454.5,4454.4,23.3003]
[1755313676937,3.2078,4454.5,4454.4,23.3003]
[1755313677239,4.8364,4455.0,4454.9,1.7713]
[1755313677534,5.01334721,4455.0,4454.9,23.3003]
[1755313677834,0.8078,4455.5,4455.4,0.4443]
[1755313678044,3.2078,4455.7,4455.6,0.6998]
[1755313678234,3.373,4455.7,4455.6,1.7713]
[1755313679144,4.2596,4455.7,4455.6,1.7713]
[1755313680339,0.1652,4455.5,4455.0,0.254]
[1755313680636,0.4201,4454.8,4454.7,1.2618]
[1755313680842,1.3067,4454.8,4454.7,23.2893]
[1755313681144,1.6286,4454.8,4454.7,23.2893]
[1755313681536,1.3067,4454.8,4454.7,23.2873]
[1755313683032,1.0518,4454.8,4454.7,23.2873]
[1755313686046,1.6286,4454.8,4454.7,23.0333]
[1755313686249,1.6286,4454.8,4454.7,23.2773]
[1755313687843,1.3067,4454.8,4454.7,23.2773]
[1755313688038,0.6641,4454.1,4454.0,2.01271454]
[1755313688244,4.5145,4453.8,4453.7,23.0173]
[1755313688549,4.8364,4453.8,4453.7,23.0173]
[1755313689246,4.8364,4453.8,4453.7,22.6231]
[1755313690845,4.8364,4453.8,4453.7,23.0173]
[1755313691047,4.8364,4453.8,4453.7,21.5]
[1755313691235,5.01359474,4453.8,4453.7,21.5]
[1755313691634,4.04909474,4453.8,4453.5,21.492]
[1755313691840,1.6286,4453.6,4453.5,21.492]
[1755313692248,1.6286,4453.6,4452.9,0.4233]
[1755313692548,4.8364,4453.2,4453.1,1.5173]
[1755313693847,4.5145,4453.2,4453.1,1.5173]
[1755313694145,4.5145,4453.2,4453.1,1.7713]
[1755313694345,4.8364,4453.2,4453.1,1.7713]
[1755313695340,3.2078,4453.2,4453.1,1.7713]
[1755313696846,3.373,4453.2,4453.1,1.7713]
[1755313697448,4.2596,4453.2,4453.1,1.7713]
[1755313697649,4.8364,4453.2,4453.1,1.7713]
[1755313698043,4.8364,4453.2,4453.1,1.5173]
[1755313698749,4.8364,4453.2,4453.1,0.7011]
[1755313699743,0.9399,4453.1,4453.0,21.493]
[1755313699949,1.6009,4453.1,4453.0,21.493]
[1755313700253,1.6009,4453.1,4453.0,22.5471]
[1755313700548,1.6009,4453.1,4453.0,22.9276]
[1755313703143,0.9787,4453.1,4453.0,22.2887]
[1755313703344,1.6009,4453.1,4453.0,22.9276]
[1755313703749,1.6009,4453.1,4453.0,23.1666]
[1755313704549,1.6009,4453.1,4453.0,21.7507]
[1755313704948,1.6009,4453.1,4453.0,21.493]
[1755313705144,1.6009,4453.1,4453.0,22.9276]
[1755313706449,1.6009,4453.1,4453.0,23.1666]
[1755313706749,1.6009,4453.1,4453.0,22.2887]
[1755313706951,1.6009,4453.1,4453.0,22.9276]
[1755313708054,1.6009,4453.1,4453.0,23.1666]
[1755313708759,1.6009,4453.1,4453.0,22.9276]
[1755313710749,1.6009,4453.1,4453.0,23.1666]
[1755313712942,3.2078,4453.2,4453.0,23.1666]
[1755313713148,3.2078,4453.2,4453.0,0.6808]
[1755313713449,4.2419,4453.2,4453.1,23.1206]
[1755313713750,4.5494,4453.2,4453.1,23.1206]
[1755313714354,4.8087,4453.2,4453.1,23.1206]
[1755313714752,4.8087,4453.2,4453.1,21.8694]
[1755313714954,3.8688,4453.2,4453.1,22.1268]
[1755313715256,4.04706537,4453.2,4453.1,23.1196]
[1755313715448,4.29596537,4453.2,4453.1,23.1196]
[1755313715649,4.98696537,4453.2,4453.1,23.1196]
[1755313716855,4.98696537,4453.2,4453.1,21.446]
[1755313717157,4.98696537,4453.2,4453.1,22.077]
[1755313717655,4.98696537,4453.2,4453.1,21.7037]
[1755313718057,4.98696537,4453.2,4453.1,0.631]
[1755313718248,4.98696537,4453.2,4452.9,21.438]
[1755313718447,1.6009,4453.0,4452.9,23.1116]
[1755313718652,1.77916537,4453.0,4452.9,23.1116]
[1755313718857,1.77916537,4453.0,4452.9,22.8726]
[1755313719058,1.77916537,4453.0,4452.9,23.1116]
[1755313720657,1.77961006,4453.0,4452.9,23.1116]
[1755313721161,1.77961006,4453.0,4452.9,22.8726]
[1755313721658,1.77961006,4453.0,4452.9,23.1116]
[1755313723161,1.77961006,4453.0,4452.9,22.2197]
[1755313723363,1.77961006,4453.0,4452.9,23.0976]
[1755313724759,1.77961006,4453.0,4452.9,22.8586]
[1755313725862,0.58041006,4453.0,4452.9,23.0976]
[1755313726255,1.21281006,4453.0,4452.9,23.0976]
[1755313732665,1.50601006,4453.0,4452.9,23.0976]
[1755313733567,1.21281006,4453.0,4452.9,23.0976]
[1755313733862,1.21277367,4453.0,4452.9,23.0976]
[1755313735656,1.50597367,4453.0,4452.9,23.0976]
[1755313735861,1.76457367,4453.0,4452.9,23.0976]
[1755313736056,1.76457367,4453.0,4452.9,1.6736]
[1755313736361,1.76457367,4453.0,4452.9,1.4346]
[1755313737165,1.76457367,4453.0,4452.9,1.676]
[1755313740766,0.17867367,4453.0,4452.9,1.676]
[1755313741470,0.59667367,4453.0,4452.9,1.676]
[1755313742170,0.83777367,4453.0,4452.9,1.676]
[1755313742468,1.20527367,4453.0,4452.9,1.676]
[1755313742667,0.17867367,4453.0,4452.9,1.676]
[1755313744174,0.83777367,4453.0,4452.9,1.676]
[1755313744375,1.20527367,4453.0,4452.9,1.676]
[1755313745264,0.58347367,4453.0,4452.9,1.676]
[1755313746468,1.75707367,4453.0,4452.9,1.676]
[1755313746877,1.20527367,4453.0,4452.9,1.676]
[1755313747773,1.49847367,4453.0,4452.9,1.676]
[1755313747974,1.20527367,4453.0,4452.9,1.676]
[1755313749677,0.17867367,4453.0,4452.9,1.676]
[1755313750276,0.83777367,4453.0,4452.9,1.676]
[1755313750576,0.83777367,4453.0,4452.8,21.394]
[1755313750577,1.5784,4452.9,4452.8,21.7693]
[1755313750773,1.75707367,4452.9,4452.8,21.7693]
[1755313751174,1.75707367,4452.9,4452.8,0.3753]
[1755313751375,1.91897182,4452.9,4452.3,0.2414]
[1755313751578,5.53157182,4452.4,4452.2,0.6167]
[1755313751782,5.53157182,4452.4,4452.1,0.10107476]
[1755313751987,5.53157182,4452.4,4452.1,0.71777476]
[1755313752283,5.53157182,4452.4,4452.2,0.6167]
[1755313753082,5.53157182,4452.4,4452.2,0.3753]
[1755313753284,5.53157182,4452.4,4452.3,0.2414]
[1755313753472,5.93827182,4452.4,4452.3,0.2414]
[1755313753878,5.93827182,4452.4,4452.3,0.6167]
[1755313754675,5.77437182,4452.4,4452.3,1.2957]
[1755313754984,5.77437182,4452.4,4452.3,1.6741]
[1755313755387,3.8554,4452.4,4452.3,1.6741]
[1755313755788,0.8554,4452.4,4452.3,1.6741]
[1755313755988,0.3715,4452.4,4452.3,1.6741]
[1755313756389,3.2078,4452.9,4452.8,0.679]
[1755313756584,3.2078,4452.9,4452.8,1.6741]
[1755313756985,3.6917,4452.9,4452.8,1.6741]
[1755313757887,3.4506,4453.5,4453.4,0.4306]
[1755313758084,3.6917,4453.5,4453.4,1.6741]
[1755313760586,0.2377,4452.8,4452.7,1.4197]
[1755313760794,0.48,4452.8,4452.7,1.4303]
[1755313761184,0.48,4452.8,4452.7,1.6859]
[1755313761585,5.12677182,4453.0,4452.3,0.2556]
[1755313761786,0.48,4452.9,4452.8,1.3186]
[1755313762689,0.48,4452.9,4452.8,1.6859]
[1755313763491,0.65304477,4452.9,4452.8,1.6859]
[1755313764091,0.65304497,4452.9,4452.8,1.6859]
[1755313766195,0.65304497,4452.9,4452.8,1.3186]
[1755313767590,0.65304497,4452.9,4452.4,0.2556]
[1755313767896,3.6878,4452.5,4452.4,0.2556]
[1755313768187,3.86084497,4452.5,4452.4,0.2556]
[1755313768390,3.86084497,4452.5,4452.4,0.6256]
[1755313772696,3.85891135,4452.5,4452.4,0.6256]
[1755313774799,3.85891135,4452.5,4452.4,1.0636]
[1755313775100,3.85891135,4452.5,4452.4,1.4309]
[1755313775792,3.85891135,4452.5,4452.1,0.10107476]
[1755313776004,0.2377,4452.3,4452.2,0.2556]
[1755313776300,0.65111135,4452.3,4452.2,1.0609]
[1755313776498,0.65111135,4452.3,4452.2,1.3159]
[1755313776709,0.65111135,4452.3,4452.2,1.6859]
[1755313779193,0.17111135,4452.3,4452.2,1.6859]
[1755313781001,0.65111135,4452.3,4452.2,1.6859]
[1755313782491,0.17111135,4452.3,4452.2,1.6859]
[1755313784302,0.65111135,4452.3,4452.2,1.6859]
[1755313786003,0.65111135,4452.3,4452.2,1.0636]
[1755313786203,0.65111135,4452.3,4452.2,0.6256]
[1755313787098,0.2423,4452.2,4452.1,0.10107476]
[1755313787297,2.57008317,4452.2,4452.1,0.10107476]
[1755313788003,2.57008317,4452.2,4452.1,0.35667476]
[1755313788205,2.78166309,4452.2,4452.1,0.10107476]
[1755313789203,2.78166309,4452.2,4452.1,0.35527476]
[1755313789704,2.78166309,4452.2,4452.1,0.10107476]
[1755313790304,2.78166309,4452.2,4451.4,0.2542]
[1755313790305,5.53936309,4452.2,4451.4,0.2542]
[1755313790503,5.49437182,4451.5,4451.4,0.4146]
[1755313790710,5.66548317,4451.5,4451.4,1.0601]
[1755313791202,5.29788317,4451.5,4451.4,1.6808]
[1755313791401,3.37891135,4451.5,4451.4,1.6808]
[1755313792701,3.37911394,4451.5,4451.4,1.6808]
[1755313793103,3.74671394,4451.5,4451.4,1.3207]
[1755313794101,3.74275338,4451.5,4451.4,1.3207]
[1755313794306,3.37515338,4451.5,4451.4,1.6808]
[1755313798509,3.74385338,4451.5,4451.4,1.6808]
[1755313800511,3.37515338,4451.5,4451.4,1.6808]
[1755313802605,3.51695338,4451.5,4451.4,1.6808]
[1755313803212,3.51683687,4451.5,4451.4,1.6808]
[1755313803612,3.37503687,4451.5,4451.4,1.6808]
[1755313804814,3.51683687,4451.5,4451.4,1.6808]
[1755313805705,3.74373687,4451.5,4451.4,1.6808]
[1755313806209,3.74376857,4451.5,4451.4,1.6808]
[1755313808920,0.2269,4451.0,4450.9,0.2542]
[1755313809112,5.66670095,4451.0,4450.9,0.6319]
[1755313809509,5.66670095,4451.0,4450.9,0.7923]
[1755313809711,5.66670095,4451.0,4450.9,1.0601]
[1755313810022,5.66670095,4451.0,4450.9,0.2542]
[1755313810218,5.66670095,4451.0,4450.9,0.6319]
[1755313810819,5.88780432,4451.0,4450.9,0.2542]
[1755313811707,0.1418,4450.9,4450.5,0.3777]
[1755313811914,0.2269,4450.7,4450.6,0.3777]
[1755313812212,0.53992913,4450.7,4450.6,0.3777]
[1755313812406,0.2269,4450.5,4450.4,0.3777]
[1755313812613,3.74772913,4450.5,4450.4,0.2542]
[1755313813010,3.74772913,4450.5,4450.4,1.6808]
[1755313813011,3.37902913,4450.5,4450.4,1.6808]
[1755313813513,3.2078,4451.5,4451.4,0.6888]
[1755313813716,3.2078,4451.5,4451.4,1.6808]
[1755313815816,2.7968,4451.5,4451.4,1.6808]
[1755313817609,3.2078,4452.1,4452.0,1.3207]
[1755313817816,3.2078,4452.1,4452.0,1.6808]
[1755313818611,4.2682,4452.1,4452.0,1.6808]
[1755313818815,4.6438,4452.1,4451.3,0.376]
[1755313819021,1.4252,4451.4,4451.3,1.7112]
[1755313819218,3.34417182,4451.4,4451.3,1.3307]
[1755313819418,3.60417182,4451.4,4451.3,1.3307]
[1755313819814,3.60417182,4451.4,4451.3,1.7112]
[1755313820015,3.34417182,4451.4,4451.3,1.7112]
[1755313820317,3.2078,4451.6,4451.3,1.7112]
[1755313820511,0.3756,4452.3,4452.0,0.7098]
[1755313820512,3.8964,4452.1,4452.0,0.7098]
[1755313820719,5.11407924,4452.1,4452.0,0.7959]
[1755313820918,5.11407924,4452.1,4452.0,0.2449]
[1755313821219,4.85407924,4452.1,4452.0,1.7112]
[1755313821420,4.633,4452.1,4452.0,1.7112]
[1755313821620,3.2078,4452.1,4452.0,1.7112]
[1755313822018,3.8964,4452.1,4452.0,1.7112]
[1755313822321,3.2078,4452.1,4452.0,1.7112]
[1755313823119,3.4673,4452.1,4452.0,1.7112]
[1755313823320,4.2574,4452.1,4452.0,1.7112]
[1755313823520,4.633,4452.1,4452.0,1.7112]
[1755313823919,4.633,4452.1,4451.4,0.7565]
[1755313824221,3.60417182,4451.7,4451.3,0.376]
[1755313824514,1.0496,4451.1,4451.0,1.3352]
[1755313824715,3.2078,4451.6,4450.6,3.2078]
[1755313824716,3.2078,4451.6,4451.5,1.3352]
[1755313825122,3.2078,4451.6,4451.5,1.7112]
[1755313825424,3.37352507,4451.6,4451.5,1.7112]
[1755313825623,0.16572507,4451.6,4451.5,1.7112]
[1755313825820,0.16572507,4451.6,4451.5,1.3307]
[1755313826123,0.16572507,4451.6,4451.5,1.7112]
[1755313828419,3.5688,4452.1,4451.5,1.7112]
[1755313828621,0.16249368,4452.0,4451.9,0.7098]
[1755313828821,0.16248831,4452.0,4451.9,1.7112]
[1755313829021,0.52348831,4452.0,4451.9,1.7112]
[1755313830523,0.16248831,4452.0,4451.9,1.7112]
[1755313831223,0.8047,4452.5,4452.4,0.4467]
[1755313831425,1.22667549,4452.5,4452.4,0.7098]
[1755313831726,1.22667549,4452.5,4452.4,1.7112]
[1755313832027,1.58767549,4452.5,4452.4,1.7112]
[1755313832532,1.21207549,4452.5,4452.4,1.7112]
[1755313832722,1.58767549,4452.5,4452.4,1.7112]
[1755313833222,0.16247549,4452.5,4452.4,1.7112]
[1755313836728,0.78297549,4452.5,4452.4,1.7112]
[1755313836929,1.58767549,4452.5,4452.4,1.7112]
[1755313837324,1.84754685,4452.5,4452.4,1.7112]
[1755313838322,0.361,4452.4,4451.8,0.2449]
[1755313838526,1.4252,4452.0,4451.9,1.7112]
[1755313839127,1.6852,4452.0,4451.9,1.7112]
[1755313839524,0.3756,4451.9,4451.3,0.6209]
[1755313839830,1.91897182,4452.3,4451.2,3.2078]
[1755313839831,4.633,4452.6,4452.5,0.4381]
[1755313840034,6.97428167,4452.6,4452.5,0.683]
[1755313840231,6.97428167,4452.6,4452.5,0.2449]
[1755313840829,0.4291,4452.3,4452.2,0.2449]
[1755313841027,1.58750985,4452.3,4452.2,1.7112]
[1755313841229,1.21190985,4452.3,4452.2,1.7112]
[1755313842632,0.42180985,4452.3,4452.2,1.7112]
[1755313843028,0.59372521,4452.3,4452.2,1.7112]
[1755313843226,1.84762521,4452.3,4452.2,1.3307]
[1755313843533,1.58762521,4452.3,4452.2,1.7112]
[1755313843728,0.85102521,4452.3,4452.2,1.7112]
[1755313843930,1.21202521,4452.3,4452.2,1.7112]
[1755313844330,1.58762521,4452.3,4452.2,1.7112]
[1755313844531,0.42192521,4452.3,4452.2,1.7112]
[1755313845837,0.16242521,4452.3,4452.2,1.7112]
[1755313846034,0.16257665,4452.3,4452.2,0.7098]
[1755313846537,0.85117665,4452.3,4452.2,0.7098]
[1755313846737,0.85117665,4452.3,4452.2,1.7112]
[1755313846738,1.58777665,4452.3,4452.2,1.7112]
[1755313847036,0.67937665,4452.3,4452.2,1.7112]
[1755313848927,0.84477665,4452.3,4452.2,1.7112]
[1755313849126,1.22157665,4452.3,4452.2,1.7112]
[1755313849531,0.84477665,4452.3,4452.2,1.7112]
[1755313849734,0.16257665,4452.3,4452.2,1.7112]
[1755313852139,1.58537665,4452.3,4452.2,1.7112]
[1755313852332,1.20857665,4452.3,4451.8,0.2617]
[1755313852538,0.6632,4451.9,4451.8,0.9472]
[1755313852738,1.4228,4451.9,4451.8,0.9472]
[1755313853141,1.4228,4451.9,4451.8,1.7287]
[1755313854236,0.7596,4452.4,4451.8,0.6855]
[1755313854444,1.5853637,4452.3,4452.2,1.7287]
[1755313855040,1.2025637,4452.3,4452.2,1.7287]
[1755313855542,1.5853637,4452.3,4452.2,1.7287]
[1755313856245,1.2025637,4452.3,4452.2,1.7287]
[1755313856537,0.1625637,4452.3,4452.2,1.7287]
[1755313857434,0.3768,4452.3,4452.2,1.7287]
[1755313857638,0.5394192,4452.3,4452.2,1.7287]
[1755313857943,0.5394192,4452.3,4452.2,4.9365]
[1755313860047,0.1626192,4452.3,4452.2,4.9365]
[1755313860244,0.16269391,4452.3,4452.2,3.8933]
[1755313860445,0.16269391,4452.3,4452.2,4.9365]
[1755313861148,0.16269252,4452.3,4452.2,4.9365]
[1755313862844,0.1,4453.2,4453.1,0.9472]
[1755313863046,0.1,4453.2,4453.1,1.7287]
[1755313863748,0.7632,4453.2,4452.8,3.2078]
[1755313864053,1.6665,4452.9,4452.8,4.9365]
[1755313864741,0.5148,4453.2,4453.1,0.6855]
[1755313864941,1.5228,4453.2,4453.1,1.7287]
[1755313865246,1.7665,4453.2,4453.1,1.7287]
[1755313865445,1.6665,4453.1,4452.8,3.2078]
[1755313865646,1.6665,4452.9,4452.8,3.2078]
[1755313865853,1.6665,4452.1,4452.0,1.7287]
[1755313866150,0.4148,4452.0,4451.9,0.432]
[1755313866351,0.6632,4452.0,4451.9,1.3454]
[1755313866545,0.6632,4452.0,4451.9,1.7287]
[1755313866852,1.6665,4452.0,4451.9,1.7287]
[1755313867946,1.6665,4452.0,4451.5,21.7659]
[1755313868250,1.6665,4451.7,4451.6,1.7287]
[1755313869151,1.046,4452.4,4452.3,0.6855]
[1755313869354,1.6665,4452.4,4452.3,1.7287]
[1755313871250,0.7596,4452.8,4452.3,1.7287]
[1755313871458,3.2078,4452.9,4452.6,0.4233]
[1755313871655,1.2897,4452.9,4452.8,1.7287]
[1755313872360,1.5228,4453.2,4453.1,0.6855]
[1755313872550,1.5228,4453.2,4453.1,1.7287]
[1755313872746,1.0033,4453.1,4452.3,0.6599]
[1755313872954,0.6632,4452.5,4452.4,1.7287]
[1755313873258,1.6665,4452.5,4452.4,1.7287]
[1755313873446,0.6632,4452.5,4452.4,1.7287]
[1755313873652,1.04,4452.5,4452.4,1.7287]
[1755313874852,0.6632,4452.5,4452.4,1.7287]
[1755313875051,1.1734,4452.8,4452.7,0.4325]
[1755313875258,1.58016394,4452.8,4452.7,1.7287]
[1755313875947,0.1,4453.2,4453.1,0.6855]
[1755313876151,0.1,4453.2,4453.1,1.7287]
[1755313876855,0.2654,4453.2,4453.1,1.7287]
[1755313877060,0.5148,4453.2,4453.1,1.7287]
[1755313877951,0.1,4453.2,4453.1,1.7287]
[1755313878151,3.2078,4453.9,4453.1,6.64767182]
[1755313878354,3.3732,4453.9,4453.8,1.7287]
[1755313878658,4.8787,4453.9,4453.8,1.7287]
[1755313878854,3.2078,4454.9,4453.8,1.3305]
[1755313879065,0.6361,4454.6,4454.0,0.3661]
[1755313879249,1.09516216,4454.5,4454.4,0.6645]
[1755313879459,1.09516216,4454.5,4454.4,1.688]
[1755313879460,1.46857687,4454.5,4454.4,1.688]
[1755313879860,1.3114,4454.5,4454.4,1.688]
[1755313880161,1.683,4454.5,4454.4,1.688]